Cogmind - Beta 11.1 --- EXPLORER MODE // 2022.11.28 @ 14:18:08 Player: darlorth Result: Self-destructed Performance ------------- Evolutions (6) 3000 Regions Visited (14) 2800 Robots Destroyed (274) 1370 Value Destroyed (9144) 9144 Prototype IDs (27) 540 Alien Tech Used (0) 0 Bonus (426) 426 TOTAL SCORE: 17280 Bonus ------- Follower Combat Kills 126 Met Data Miner 300 Cogmind --------- Core Integrity 920/1150 Matter 300/300 Energy 370/370 System Corruption 2% Temperature Cool (0) Movement Walking (120) Location -4/Factory Parts ------- > --- POWER (1) -------- Light Antimatter Reactor > --- PROPULSION (4) --- Flexi-carbon Leg Flexi-carbon Leg Flexi-carbon Leg Myomer Leg > --- UTILITY (11) ----- Large Storage Unit Compact Battery Machine Analyzer Advanced Signal Interpreter Improved Actuator Array Transmission Jammer Hacking Suite Hacking Suite > --- WEAPON (4) ------- Heavy Pick Heavy Pick > --- INVENTORY (15) --- Micro Fission Core Flexi-carbon Leg Flexi-carbon Leg Armored Leg Improved Cooling System Matter Compressor (250) Advanced Weight Redist. System Experimental Sensor Array Stasis Canceller Improved Transmission Jammer Improved Propulsion Shielding Experimental Utility Shielding System Restoration Module Improved Datajack Peak State ------------ > --- POWER ------------ Light Antimatter Reactor > --- PROPULSION ------- Improved VSS Leg Myomer Leg Myomer Leg Myomer Leg > --- UTILITY ---------- Large Storage Unit Experimental Sensor Array Advanced Signal Interpreter Microactuators Experimental Utility Shielding Hacking Suite Hacking Suite Hacking Suite Hacking Suite Hacking Suite Hacking Suite > --- WEAPON ----------- Smartbomb Launcher Heavy Pick Heavy Pick > --- INVENTORY -------- Micro Fission Core Armored Leg Power Amplifier Power Amplifier Improved Cooling System Compact Battery Matter Compressor Advanced Weight Redist. System Improved Actuator Array Improved Transmission Jammer Improved Propulsion Shielding Improved Propulsion Shielding System Shield Improved Datajack Heavy Pick [Rating: 104] Favorites ----------- Power Cooled Ion Engine Engine Cooled Ion Engine Power Core Micro Fission Core Reactor Light Antimatter Reactor Propulsion Carbon-fiber Leg Treads Improved Treads Leg Carbon-fiber Leg Wheel Wheel Hover Unit Antigrav System Flight Unit Biomechanical Wings Utility Hacking Suite Device Experimental Sensor Array Storage Large Storage Unit Processor Advanced Signal Interpreter Hackware Hacking Suite Protection Improved Utility Shielding Weapon Assault Cannon Energy Gun Improved Lightning Gun Ballistic Gun Light Assault Rifle Ballistic Cannon Assault Cannon Launcher Smartbomb Launcher Slashing Weapon Katana Piercing Weapon Heavy Pick Special Melee Weapon Improved Datajack Build | -11 -10 -10 -9 -9 -8 -7 -7 -7 -6 -6 -6 -5 -5 -4 ------- Run | Scr Mat Min Mat Sto Mat Fac Low Low Fac Low Dat Pro Fac Fac Slots Evolved 13 | . 1 . 2 . 2 2 . . 2 . . . 2 2 Power . | . . . . . . . . . . . . . . . Propulsion 2 | . . . 1 . . 1 . . . . . . . . Utility 9 | . 1 . . . 2 1 . . 2 . . . 1 2 Weapon 2 | . . . 1 . . . . . . . . . 1 . Parts Attached 273 | 6 13 2 15 12 15 8 6 1 53 . . 9 88 45 Power 25 | 1 . . 1 4 1 . . . 4 . . . 7 7 Engine 11 | 1 . . 1 4 1 . . . 2 . . . 2 . Core 10 | . . . . . . . . . 1 . . . 5 4 Reactor 4 | . . . . . . . . . 1 . . . . 3 Propulsion 70 | 2 . . 4 6 2 2 3 1 14 . . . 26 10 Treads 2 | . . . . . . . . . . . . . 2 . Leg 54 | 2 . . 4 6 2 2 3 1 14 . . . 10 10 Wheel 6 | . . . . . . . . . . . . . 6 . Hover 4 | . . . . . . . . . . . . . 4 . Flight 4 | . . . . . . . . . . . . . 4 . Utility 112 | 1 6 1 4 . 4 3 . . 24 . . 4 39 26 Device 50 | . 2 . . . . . . . 8 . . 2 19 19 Storage 11 | . 2 . 1 . . 1 . . 3 . . . 3 1 Processor 4 | . . . . . . . . . 3 . . . . 1 Hackware 12 | . . . 2 . 2 . . . 3 . . . 2 3 Protection 35 | 1 2 1 1 . 2 2 . . 7 . . 2 15 2 Artifact . | . . . . . . . . . . . . . . . Weapon 66 | 2 7 1 6 2 8 3 3 . 11 . . 5 16 2 Energy Gun 2 | . . . . . . . . . . . . . 2 . Energy Cannon . | . . . . . . . . . . . . . . . Ballistic Gun 4 | 2 2 . . . . . . . . . . . . . Ballistic Cannon 27 | . 4 1 5 2 7 1 2 . 4 . . . 1 . Launcher 8 | . 1 . 1 . 1 1 . . . . . 1 2 1 Special Weapon . | . . . . . . . . . . . . . . . Impact Weapon . | . . . . . . . . . . . . . . . Slashing Weapon 9 | . . . . . . 1 . . 3 . . 4 1 . Piercing Weapon 13 | . . . . . . . 1 . 2 . . . 9 1 Special Melee Weapon 3 | . . . . . . . . . 2 . . . 1 . Unidentified Prototypes 5 | . . . . 1 . 1 . . . . . . 3 . Corrupted Parts 2 | . . . . . . . . . . . . . 2 . System Corruption 7 | . . . . . . . . . . . . . 7 . Parts Lost 47 | . . . . . 2 . . . 13 . . 1 14 17 Power 9 | . . . . . . . . . 2 . . . 4 3 Propulsion 13 | . . . . . 1 . . . 5 . . . 4 3 Utility 14 | . . . . . 1 . . . 1 . . . 3 9 Weapon 11 | . . . . . . . . . 5 . . 1 3 2 Highest Loss Streak 9 | . . . . . 1 . . . 6 . . 1 2 9 To Critical Strikes 2 | . . . . . . . . . 1 . . . 1 . Average Slot Usage (%) 94 | . 93 99 99 97 98 97 99 100 95 . 100 99 87 89 Engine 5 | . 12 12 10 9 7 7 7 7 5 . 6 6 1 . Core 1 | . . . . . . . . . . . . . 3 2 Leg 22 | . 25 25 29 28 24 28 27 28 24 . 25 25 12 17 Wheel 1 | . . . . . . . . . . . . . 4 1 Device 5 | . 8 12 8 . . . . . 5 . 6 2 4 14 Storage 7 | . 6 12 10 10 8 7 7 7 6 . 6 6 5 7 Processor 3 | . . . . . . . . . 6 . 6 6 5 6 Hackware 20 | . . . 2 20 25 21 21 21 23 . 31 31 27 22 Protection 7 | . 14 12 8 . 7 12 14 14 7 . . 3 5 3 Ballistic Cannon 11 | . 14 24 29 29 24 20 18 21 4 . . . 1 . Slashing Weapon 2 | . . . . . . . 1 . 5 . 12 14 2 . Piercing Weapon 3 | . . . . . . . . . 2 . . . 7 12 Naked Turns . | . . . . . . . . . . . . . . . Heaviest Build 96 | 11 31 30 45 43 45 55 55 55 96 55 55 61 68 53 Greatest Support 95 | 20 26 26 51 45 45 55 57 57 75 64 64 64 68 95 Greatest Overweight (x) 9 | . 1 1 1 2 1 1 1 . 1 . . . 9 1 Average Overweight (x) . | . . . . . . . . . . . . . . . Largest Inventory Capacity 25 | 5 10 10 15 15 15 15 15 15 25 20 20 20 25 15 Average Capacity 15 | 5 7 10 12 15 15 15 15 15 16 20 20 20 17 15 Most Carried 21 | 4 10 10 15 15 15 15 15 15 21 20 20 20 21 15 Average Carried 14 | 1 6 9 11 14 14 14 14 14 15 20 20 19 16 14 Final Capacity 20 | 5 10 10 15 15 15 15 15 15 20 20 20 20 15 15 Final Carried 20 | 4 10 10 15 15 14 15 15 15 20 20 20 20 15 14 Class Distribution -------------------- 38% | Wizard-Mutant 24% | Hacker-Mutant 22% | Hacker-Tank 7% | Hacker-Gunner Dominant Class ---------------- Hacker-Mutant | -10/Materials Hacker-Mutant | -10/Mines Hacker-Tank | -9/Materials Hacker-Gunner | -9/Storage Hacker-Tank | -8/Materials Hacker-Tank | -7/Factory Hacker-Tank | -7/Lower Caves Hacker-Tank | -7/Lower Caves Hacker-Mutant | -6/Factory Hacker-Mutant | -6/Lower Caves Wizard-Mutant | -6/Data Miner Wizard-Mutant | -5/Proximity Caves Wizard-Mutant | -5/Factory Wizard-Mutant | -4/Factory Resources | -11 -10 -10 -9 -9 -8 -7 -7 -7 -6 -6 -6 -5 -5 -4 ----------- Run | Scr Mat Min Mat Sto Mat Fac Low Low Fac Low Dat Pro Fac Fac Matter Collected 6899 | 209 180 309 593 744 1209 161 388 87 1278 . . 139 1174 428 Remotely . | . . . . . . . . . . . . . . . Salvage Created 11834 | . 298 87 551 898 972 77 343 37 2278 . . 307 4151 1835 Parts 621 | . 27 9 46 55 70 5 12 . 104 . . 10 187 96 Haulers Intercepted 23 | . . . 5 6 4 . . . 1 . . . 4 3 Recyclers Shooed 7 | . . . . . . . . . 2 . . . 5 . Parts Field Recycled . | . . . . . . . . . . . . . . . Retrieved Matter . | . . . . . . . . . . . . . . . Parts Self-Destructed . | . . . . . . . . . . . . . . . Prevented . | . . . . . . . . . . . . . . . Kills | -11 -10 -10 -9 -9 -8 -7 -7 -7 -6 -6 -6 -5 -5 -4 ------- Run | Scr Mat Min Mat Sto Mat Fac Low Low Fac Low Dat Pro Fac Fac Combat Hostiles Destroyed 169 | . 9 5 10 19 28 2 10 2 24 . . 7 33 20 Melee 59 | . . . . . . . . . 15 . . 4 20 20 Guns 11 | . 7 . . . . . . . . . . . 4 . Cannons 82 | . . 5 8 19 27 2 10 2 9 . . . . . AOE 13 | . 2 . 2 . 1 . . . . . . 3 5 . Classes Destroyed 17 | . 4 . 4 2 2 . 2 . 2 . . 1 . . Worker 13 | . . . . 1 1 . . . 4 . . . 7 . Builder 16 | . 1 . . . . . . . 5 . . . 9 1 Tunneler 3 | . . . 1 . . . . . . . . . 1 1 Hauler 23 | . . . 5 6 4 . . . 1 . . . 4 3 Recycler 21 | . . . . 3 1 . . . 6 . . . 10 1 Mechanic 2 | . . . . . . . . . 1 . . . 1 . Operator 10 | . . . 2 1 2 1 . . 1 . . . 2 1 Watcher 17 | . 1 . 2 1 4 . . . 4 . . . 5 . Swarmer 33 | . 4 3 1 5 9 . 2 . 2 . . 3 4 . Grunt 59 | . 5 2 3 4 9 2 4 1 10 . . . 10 9 Brawler 3 | . . . . . . . . . 1 . . . 2 . Duelist 3 | . . . . . 1 . 1 1 . . . . . . Sentry 34 | . . . 6 10 8 . 1 . 4 . . . 3 2 Hunter 15 | . . . . . 1 . . . 4 . . 2 6 2 Programmer 21 | . . . . . . . 1 . 3 . . 2 8 7 Samaritan 2 | . . . . . . . . . . . . 2 . . Mutant 1 | . . . . . . . 1 . . . . . . . Best Kill Streak 7 | . 5 2 4 5 5 2 5 2 7 . . 3 5 5 Combat Bots Only 5 | . 5 2 3 4 5 2 5 2 4 . . 3 4 5 Max Kills in Single Turn 3 | . 2 1 2 2 2 2 2 1 1 . . 1 3 1 Gunslinging 1 | . 1 . . . . . . . . . . . . . Exploded 2 | . 1 . 1 . 1 . . . . . . 1 2 . Melee 1 | . . . . . . . . . 1 . . 1 1 1 Uniques/NPCs Destroyed . | . . . . . . . . . . . . . . . Combat | -11 -10 -10 -9 -9 -8 -7 -7 -7 -6 -6 -6 -5 -5 -4 -------- Run | Scr Mat Min Mat Sto Mat Fac Low Low Fac Low Dat Pro Fac Fac Damage Taken 11480 | . 221 29 109 241 943 9 355 18 3143 . . 648 3534 2230 Core 1600 | . 52 . 22 38 140 . 88 . 479 . . 77 474 230 Absorbed by Shields . | . . . . . . . . . . . . . . . Redirected to Shielding 642 | . 1 3 5 . 9 . 16 . 90 . . 19 226 273 Regen/Repaired (Parts) 689 | . . . . 155 395 . . . . . . . 139 . Core Remaining (%) 73 | 100 . 79 . 85 74 . . 87 . . . 34 52 . Volleys Fired 292 | . 31 10 32 47 69 4 19 5 39 . . 3 33 . Largest 3 | . 2 2 3 3 3 3 3 3 3 . . 1 2 . Hottest 136 | . 78 78 132 132 132 136 136 136 136 . . 36 120 . Shots Fired 757 | . 59 18 92 141 194 12 57 15 103 . . 3 63 . Gun 111 | . 54 . . . . . . . . . . . 57 . Cannon 633 | . 2 18 90 141 193 12 57 15 103 . . . 2 . Launcher 13 | . 3 . 2 . 1 . . . . . . 3 4 . Special . | . . . . . . . . . . . . . . . Kinetic 687 | . 56 18 90 141 193 12 57 15 103 . . . 2 . Thermal . | . . . . . . . . . . . . . . . Explosive 13 | . 3 . 2 . 1 . . . . . . 3 4 . Electromagnetic 57 | . . . . . . . . . . . . . 57 . Robot Hit Streak 35 | . 26 5 22 35 27 12 21 8 11 . . 10 17 . Robot Miss Streak 4 | . 2 2 2 2 3 . 3 1 2 . . . 4 . Penetration Max . | . . . . . . . . . . . . . . . Secondary Targets 6 | . 2 . . . . . . . . . . . 4 . Max Gunslinging Chain 1 | . 1 . . . . . . . . . . . 1 . Shots Hit Robots 845 | . 48 11 44 88 114 8 34 13 168 . . 30 189 98 Core Hits 361 | . 21 6 22 33 47 3 15 4 66 . . 14 85 45 Critical Kills . | . . . . . . . . . . . . . . . Critical Parts Destroyed . | . . . . . . . . . . . . . . . Critical Strikes 76 | . . 2 . 1 7 1 5 2 26 . . 2 21 9 Blast 24 | . . 2 . 1 7 1 5 2 6 . . . . . Corrupt 2 | . . . . . . . . . . . . . 2 . Sever 19 | . . . . . . . . . 10 . . 2 7 . Impale 31 | . . . . . . . . . 10 . . . 12 9 Melee Attacks 480 | . . . . . . . . . 144 . . 30 169 137 Impact . | . . . . . . . . . . . . . . . Slashing 152 | . . . . . . . . . 77 . . 30 45 . Piercing 328 | . . . . . . . . . 67 . . . 124 137 Sneak Attacks 77 | . . . . . . . . . 24 . . 5 38 10 Combat Hostiles . | . . . . . . . . . . . . . . . Follow-up Attacks 62 | . . . . . . . . . 10 . . 6 18 28 Damage Inflicted 27069 | . 547 256 1097 2227 2845 238 866 344 5319 . . 1337 8402 3591 Guns 1524 | . 353 . . . . . . . . . . . 1171 . Cannons 8938 | . . 256 982 2227 2733 238 866 344 1262 . . . 30 . Explosions 1454 | . 194 . 115 . 112 . . . . . . 302 731 . Melee 15135 | . . . . . . . . . 4039 . . 1035 6470 3591 Ramming 18 | . . . . . . . . . 18 . . . . . Kinetic 9291 | . 353 256 982 2227 2733 238 866 344 1262 . . . 30 . Thermal 245 | . . . . . . . . . . . . . 245 . Explosive 1174 | . 194 . 115 . 112 . . . . . . 302 451 . Electromagnetic 1206 | . . . . . . . . . . . . . 1206 . Impact . | . . . . . . . . . . . . . . . Slashing 5583 | . . . . . . . . . 2357 . . 1035 2191 . Piercing 9552 | . . . . . . . . . 1682 . . . 4279 3591 Highest Corruption 20 | . 2 2 . . . . . . 2 . . 4 20 2 Average Corruption 6 | . 1 2 . . . . . . 1 . . 3 13 1 Corruption Purged 3 | . . . . . . . . . 2 . . . . 1 Corruption Blocked . | . . . . . . . . . . . . . . . Effects 151 | . 8 13 . . . . . . 2 . . 7 114 7 Message Errors 32 | . 2 3 . . . . . . . . . 4 22 1 Matter Fused 43 | . 4 2 . . . . . . . . . 1 35 1 Heat Flow Errors 20 | . . 4 . . . . . . . . . . 15 1 Energy Discharges 18 | . 1 2 . . . . . . 1 . . . 12 2 Parts Rejected 5 | . . 1 . . . . . . . . . . 3 1 Data Loss (minor) 23 | . 1 . . . . . . . 1 . . 1 19 1 Data Loss (major) 4 | . . . . . . . . . . . . 1 3 . Misfires 4 | . . 1 . . . . . . . . . . 3 . Alerts 1 | . . . . . . . . . . . . . 1 . Weapon Failures 1 | . . . . . . . . . . . . . 1 . Overload Shots . | . . . . . . . . . . . . . . . Overflow Damage 1577 | . 31 . 26 4 82 11 . 21 199 . . 77 964 162 Projectiles 120 | . . . 18 4 66 11 . 21 . . . . . . Explosions 73 | . 31 . 8 . 16 . . . . . . 11 7 . Melee 1384 | . . . . . . . . . 199 . . 66 957 162 Knockbacks 64 | . . 1 5 2 26 1 6 5 17 . . . 1 . Impact . | . . . . . . . . . . . . . . . Kinetic 61 | . . 1 5 2 24 1 6 4 17 . . . 1 . Secondary 3 | . . . . . 2 . . 1 . . . . . . Self-Inflicted Damage 64 | . 22 . . . . . . . . . . . 42 . Shots 4 | . 2 . . . . . . . . . . . 2 . Rammed . | . . . . . . . . . . . . . . . Targets Rammed 3 | . . . . . . . . . 3 . . . . . Kicked 3 | . . . . . . . . . 3 . . . . . Crushed . | . . . . . . . . . . . . . . . Highest Temperature 474 | . 27 258 169 237 359 123 370 209 474 . . . 338 170 Average Temperature 88 | . 9 72 60 68 88 47 147 110 130 . . . 98 63 Received Heat Transfer 3357 | . 141 9 78 114 612 9 81 18 893 . . . 721 681 Effects 11 | . . . . . 3 . 1 . 4 . . . 3 . Energy Bleed 3 | . . . . . 1 . 1 . 1 . . . . . Interference 7 | . . . . . 2 . . . 3 . . . 2 . Short Circuit 1 | . . . . . . . . . . . . . 1 . Siege Activations . | . . . . . . . . . . . . . . . Robots Corrupted 5 | . . . . . . . . . . . . . 5 . Combat Hostiles 4 | . . . . . . . . . . . . . 4 . Parts Fried 7 | . . . . . . . . . . . . . 7 . Impact Corruptions . | . . . . . . . . . . . . . . . Robots Melted . | . . . . . . . . . . . . . . . Combat Hostiles . | . . . . . . . . . . . . . . . Parts Melted . | . . . . . . . . . . . . . . . Heat Transferred 200 | . . . . . . . . . . . . . 200 . Parts Sabotaged . | . . . . . . . . . . . . . . . Parts Stolen . | . . . . . . . . . . . . . . . Parts Stripped . | . . . . . . . . . . . . . . . Power Chain Reactions 1 | . . . . . . . . . . . . . 1 . Missiles Intercepted . | . . . . . . . . . . . . . . . Alert | -11 -10 -10 -9 -9 -8 -7 -7 -7 -6 -6 -6 -5 -5 -4 ------- Run | Scr Mat Min Mat Sto Mat Fac Low Low Fac Low Dat Pro Fac Fac Peak Influence 408 | . 267 119 342 408 400 78 . . 238 . . . 365 189 Initial 63 | . . 4 . . 36 17 . . 63 . . . . . Average 79 | . 49 47 121 129 103 59 . . 67 . . . 76 56 Maximum Alert Level 2 | . 1 . 1 2 2 . . . 1 . . . 1 . Low Security (%) 92 | 100 97 100 75 80 93 100 . . 97 . . . 92 100 Level 1 6 | . 2 . 24 19 6 . . . 2 . . . 7 . Level 2 . | . . . . . . . . . . . . . . . Level 3 . | . . . . . . . . . . . . . . . Level 4 . | . . . . . . . . . . . . . . . Level 5 . | . . . . . . . . . . . . . . . High Security . | . . . . . . . . . . . . . . . Max Security . | . . . . . . . . . . . . . . . Squads Dispatched 44 | . 1 . 4 2 6 1 . . 9 . . . 15 6 Investigation 20 | . 1 . 4 . 4 . . . 3 . . . 6 2 Extermination 11 | . . . . . . . . . 3 . . . 4 4 Reinforcement 12 | . . . . 2 2 1 . . 2 . . . 5 . Assault . | . . . . . . . . . . . . . . . Garrison 1 | . . . . . . . . . 1 . . . . . Intercept . | . . . . . . . . . . . . . . . Searches Triggered . | . . . . . . . . . . . . . . . Data Miner Redirects 4 | . . . . . . . . . . . . . 3 1 Construction Impeded 2 | . . . . . . . . . 1 . . . 1 . Haulers Reinforced 2 | . . . . . . . . . . . . . 2 . Active Scanning Responses . | . . . . . . . . . . . . . . . Cargo Convoy Interrupts . | . . . . . . . . . . . . . . . Stealth | -11 -10 -10 -9 -9 -8 -7 -7 -7 -6 -6 -6 -5 -5 -4 --------- Run | Scr Mat Min Mat Sto Mat Fac Low Low Fac Low Dat Pro Fac Fac Distress Signals 11 | . 2 . 2 1 2 . . . 1 . . . 2 1 Communications Jammed . | . . . . . . . . . . . . . . . Distress Signals . | . . . . . . . . . . . . . . . Times Spotted 250 | . 21 8 15 21 41 5 10 2 34 . . 8 53 32 Peak Tracking Total 7 | . 5 2 3 3 5 3 5 2 5 . . 3 4 7 Tactical Retreats 10 | . 2 . . 2 2 . . . 1 . . . 2 1 Traps | -11 -10 -10 -9 -9 -8 -7 -7 -7 -6 -6 -6 -5 -5 -4 ------- Run | Scr Mat Min Mat Sto Mat Fac Low Low Fac Low Dat Pro Fac Fac Traps Triggered 16 | . 5 . 1 2 2 . . . 4 . . . 1 1 Indirectly . | . . . . . . . . . . . . . . . Trap Hack Attempts 7 | . . . . . . . . . 7 . . . . . Triggered . | . . . . . . . . . . . . . . . Disarmed . | . . . . . . . . . . . . . . . Reprogrammed 8 | . . . . . . . . . 4 . . . . 4 Reused . | . . . . . . . . . . . . . . . Traps Extracted . | . . . . . . . . . . . . . . . Installed . | . . . . . . . . . . . . . . . Triggered 4 | . . . . . . . . . . . . 4 . . Exploded 1 | . . . . . . . . . . . . . 1 . Machines | -11 -10 -10 -9 -9 -8 -7 -7 -7 -6 -6 -6 -5 -5 -4 ---------- Run | Scr Mat Min Mat Sto Mat Fac Low Low Fac Low Dat Pro Fac Fac Machines Disabled 20 | . 3 . 3 4 3 1 2 . 2 . . . 2 . Max in Single Turn 2 | . 1 . 1 1 1 1 1 . 2 . . . 1 . Garrison Access 5 | . . . . 1 1 . . . 1 . . . 2 . Machines Sabotaged . | . . . . . . . . . . . . . . . Garrisons Compromised . | . . . . . . . . . . . . . . . Overloaded Fab Kills . | . . . . . . . . . . . . . . . Hacking | -11 -10 -10 -9 -9 -8 -7 -7 -7 -6 -6 -6 -5 -5 -4 --------- Run | Scr Mat Min Mat Sto Mat Fac Low Low Fac Low Dat Pro Fac Fac Machines Accessed 81 | . 8 . 9 9 12 . . . 11 . 4 . 21 7 Terminals 53 | . 8 . 8 5 9 . . . 10 . . . 10 3 Fabricators 3 | . . . . . . . . . . . . . 2 1 Repair Stations 5 | . . . . 1 1 . . . . . . . 3 . Recycling Units 6 | . . . . 2 . . . . . . . . 2 2 Scanalyzers 5 | . . . 1 . 1 . . . . . . . 2 1 Garrison Access 5 | . . . . 1 1 . . . 1 . . . 2 . Total Hacks 296 | . 21 . 28 32 63 . . . 37 . 29 . 65 21 Successful 212 | . 13 . 12 23 45 . . . 21 . 29 . 55 14 Failed 84 | . 8 . 16 9 18 . . . 16 . . . 10 7 Catastrophic 7 | . 1 . 4 . . . . . 2 . . . . . Database Lockouts . | . . . . . . . . . . . . . . . Manual 161 | . 17 . 19 13 35 . . . 32 . . . 33 12 Terminals 188 | . 21 . 25 22 45 . . . 35 . . . 30 10 Fabricators 9 | . . . . . . . . . . . . . 6 3 Repair Stations 26 | . . . . 4 10 . . . . . . . 12 . Recycling Units 14 | . . . . 4 . . . . . . . . 4 6 Scanalyzers 23 | . . . 3 . 7 . . . . . . . 11 2 Garrison Access 7 | . . . . 2 1 . . . 2 . . . 2 . Terminal Hacks 134 | . 13 . 10 14 26 . . . 20 . 29 . 16 6 Record 12 | . . . . . 1 . . . . . 11 . . . Part Schematic 38 | . 5 . 2 5 6 . . . 6 . 10 . 2 2 Robot Schematic 6 | . . . . 1 . . . . . . 5 . . . Robot Analysis 5 | . 1 . 3 . 1 . . . . . . . . . Prototype ID Bank 6 | . . . 1 . 2 . . . . . 3 . . . Open Door 3 | . . . . 2 . . . . 1 . . . . . Level Access Points 1 | . . . . . 1 . . . . . . . . . Branch Access Points 2 | . 1 . . . . . . . 1 . . . . . Machine Index 2 | . . . . . 1 . . . . . . . 1 . Terminal Index 5 | . 1 . 1 . 1 . . . 1 . . . 1 . Fabricator Index 2 | . . . . . . . . . 1 . . . . 1 Repair Station Index 1 | . . . . . 1 . . . . . . . . . Recycling Unit Index 1 | . . . . 1 . . . . . . . . . . Scanalyzer Index 2 | . . . . . 2 . . . . . . . . . Garrison Index 2 | . . . . . 1 . . . . . . . 1 . Alert Level 3 | . . . . . 1 . . . 1 . . . 1 . Unreport Threat 7 | . 1 . . 2 1 . . . 1 . . . 1 1 Locate Traps 4 | . . . 1 . 1 . . . 1 . . . . 1 Reprogram Traps 1 | . . . . . . . . . . . . . . 1 Dispatch Records 10 | . 1 . . 1 1 . . . 4 . . . 3 . Recall Investigation 7 | . 1 . . . 2 . . . . . . . 4 . Recall Reinforcements 6 | . . . . 2 . . . . 2 . . . 2 . Hauler Manifests 3 | . 1 . . . 2 . . . . . . . . . Zone Layout 5 | . 1 . 2 . 1 . . . 1 . . . . . Fabricator Hacks 7 | . . . . . . . . . . . . . 5 2 Load Schematic 4 | . . . . . . . . . . . . . 3 1 Build 3 | . . . . . . . . . . . . . 2 1 Repair Station Hacks 26 | . . . . 4 10 . . . . . . . 12 . Scan Component 13 | . . . . 2 5 . . . . . . . 6 . Repair 13 | . . . . 2 5 . . . . . . . 6 . Recycling Unit Hacks 7 | . . . . 3 . . . . . . . . 2 2 Retrieve Components 7 | . . . . 3 . . . . . . . . 2 2 Scanalyzer 21 | . . . 2 . 6 . . . . . . . 11 2 Insert Component 8 | . . . 1 . 1 . . . . . . . 5 1 Analyze 13 | . . . 1 . 5 . . . . . . . 6 1 Garrison Access Hacks 5 | . . . . 1 1 . . . 1 . . . 2 . Seal Access 5 | . . . . 1 1 . . . 1 . . . 2 . Unauthorized Hacks 12 | . . . . 1 2 . . . . . . . 7 2 Terminals 6 | . . . . . 2 . . . . . . . 4 . Track 1 | . . . . . 1 . . . . . . . . . Assimilate 1 | . . . . . . . . . . . . . 1 . Botnet 4 | . . . . . 1 . . . . . . . 3 . Fabricators 2 | . . . . . . . . . . . . . 1 1 Prioritize 1 | . . . . . . . . . . . . . . 1 Haulers 1 | . . . . . . . . . . . . . 1 . Repair Stations . | . . . . . . . . . . . . . . . Recycling Units 4 | . . . . 1 . . . . . . . . 2 1 Mask 4 | . . . . 1 . . . . . . . . 2 1 Scanalyzers . | . . . . . . . . . . . . . . . Garrison Access . | . . . . . . . . . . . . . . . Data Cores Recovered 3 | . . . 2 . . . . . . . . . . 1 Used 2 | . . . 1 . . . . . . . . . . 1 Hacking Detections 58 | . 4 . 9 6 9 . . . 9 . . . 15 6 Full Trace Events 19 | . 2 . 4 . 4 . . . 2 . . . 5 2 Feedback Events 1 | . . . . . . . . . . . . . . 1 Hackware Fried 1 | . . . . . . . . . . . . . . 1 Feedback Blocked 3 | . . . . . 1 . . . 1 . . . 1 . Robot Schematics Acquired 6 | . . . . 1 . . . . . . 5 . . . Robots Built . | . . . . . . . . . . . . . . . Authchips . | . . . . . . . . . . . . . . . Time . | . . . . . . . . . . . . . . . Total Robot Build Rating . | . . . . . . . . . . . . . . . Part Schematics Acquired 42 | . 5 . 3 5 5 . . . 5 . 10 . 6 3 Parts Built 3 | . . . . . . . . . . . . . 3 . Authchips . | . . . . . . . . . . . . . . . Time 259 | . . . . . . . . . . . . . 107 152 Total Part Build Rating 15 | . . . . . . . . . . . . . 15 . Parts Repaired 13 | . . . . 2 5 . . . . . . . 6 . Time 625 | . . . . 76 203 . . . . . . . 346 . Parts Recycled . | . . . . . . . . . . . . . . . Recycled Matter . | . . . . . . . . . . . . . . . Retrieved Matter . | . . . . . . . . . . . . . . . Retrieved Components 44 | . . . . 20 . . . . . . . . 13 11 Parts Scanalyzed 7 | . . . 1 . 1 . . . . . . . 4 1 Part Schematics Acquired 6 | . . . 1 . . . . . . . . . 4 1 Parts Damaged . | . . . . . . . . . . . . . . . Bothacking | -11 -10 -10 -9 -9 -8 -7 -7 -7 -6 -6 -6 -5 -5 -4 ------------ Run | Scr Mat Min Mat Sto Mat Fac Low Low Fac Low Dat Pro Fac Fac Used RIF Installer . | . . . . . . . . . . . . . . . Robots Hacked . | . . . . . . . . . . . . . . . Non-combat . | . . . . . . . . . . . . . . . Combat . | . . . . . . . . . . . . . . . Robot Hacks Applied . | . . . . . . . . . . . . . . . Relay Couplers Released . | . . . . . . . . . . . . . . . Fabnet Peak Effective % . | . . . . . . . . . . . . . . . Robots Rewired . | . . . . . . . . . . . . . . . Allies Hacked . | . . . . . . . . . . . . . . . Hacks Repelled . | . . . . . . . . . . . . . . . Allies | -11 -10 -10 -9 -9 -8 -7 -7 -7 -6 -6 -6 -5 -5 -4 -------- Run | Scr Mat Min Mat Sto Mat Fac Low Low Fac Low Dat Pro Fac Fac Total Allies 5 | . . 3 . . . . . . . . . 1 1 . Largest Group 3 | . . 3 2 . . . . . . . . 1 1 . Highest-Rated Group 89 | . . 40 24 . . . . . . . . 89 10 . Highest-Rated Ally 89 | . . 16 16 . . . . . . . . 89 10 . Total Orders . | . . . . . . . . . . . . . . . Ally Attacks 53 | . . 28 24 . . . . . . . . 1 . . Total Damage 576 | . . 273 247 . . . . . . . . 56 . . Kills 8 | . . 4 4 . . . . . . . . . . . Allies Corrupted . | . . . . . . . . . . . . . . . Allies Melted . | . . . . . . . . . . . . . . . Intel | -11 -10 -10 -9 -9 -8 -7 -7 -7 -6 -6 -6 -5 -5 -4 ------- Run | Scr Mat Min Mat Sto Mat Fac Low Low Fac Low Dat Pro Fac Fac Robot Analysis Total 4 | . 1 . 2 . 1 . . . . . . . . . Derelict Logs Recovered 2 | . . 1 . . . . 1 . . . . . . . Drone Launches . | . . . . . . . . . . . . . . . Drone Recoveries . | . . . . . . . . . . . . . . . Exploration | -11 -10 -10 -9 -9 -8 -7 -7 -7 -6 -6 -6 -5 -5 -4 ------------- Run | Scr Mat Min Mat Sto Mat Fac Low Low Fac Low Dat Pro Fac Fac Turns Passed 17755 | 96 1071 1027 1277 1155 2150 206 1130 105 2696 4 108 943 4011 1776 Spaces Moved 10947 | 80 609 649 929 659 1026 131 932 77 1721 4 91 719 2170 1150 Core 22 | 22 . . . . . . . . . . . . . . Treads 80 | . . . . . . . . . . . . . 80 . Legs 10009 | 58 609 649 929 659 1026 131 932 77 1721 4 91 719 1396 1008 Wheels 713 | . . . . . . . . . . . . . 571 142 Hover 118 | . . . . . . . . . . . . . 118 . Flight 5 | . . . . . . . . . . . . . 5 . Fastest Speed 50 | 50 120 120 120 120 120 112 112 112 112 120 120 120 80 82 Average Speed 128 | 100 154 148 120 125 165 136 112 112 118 120 120 120 130 114 Slowest Speed 645 | 120 190 190 190 260 190 190 190 112 190 120 120 120 645 120 Overloaded Moves . | . . . . . . . . . . . . . . . Propulsion Burnouts . | . . . . . . . . . . . . . . . Robots Hopped . | . . . . . . . . . . . . . . . Cave-ins Triggered . | . . . . . . . . . . . . . . . Exploration Rate (%) 52 | 6 83 99 80 81 73 4 91 12 45 2 75 66 44 19 Regions Visited 14 Branch Regions 7 Pre-discovered Areas 1 | . . . . . . . . . . . 1 . . . Known Exits Taken 14 | 1 1 1 1 1 1 1 1 1 1 1 1 1 1 . Unknown Exits Taken . | . . . . . . . . . . . . . . . Scrap Searched 11 | . . 1 . . . . 8 1 . . . 1 . . Spaces Dug 56 | . . . 4 . 4 . . . 21 . . . 13 14 Terrain Destroyed 242 | . . . 27 18 46 1 12 . 54 . . 21 49 14 Melee 45 | . . . . . . . . . 18 . . . 13 14 Projectile 81 | . . . 7 18 33 1 12 . 9 . . . 1 . AOE 116 | . . . 20 . 13 . . . 27 . . 21 35 . Terrain Rammed . | . . . . . . . . . . . . . . . Walls Destroyed . | . . . . . . . . . . . . . . . Machines Disabled . | . . . . . . . . . . . . . . . Actions | -11 -10 -10 -9 -9 -8 -7 -7 -7 -6 -6 -6 -5 -5 -4 --------- Run | Scr Mat Min Mat Sto Mat Fac Low Low Fac Low Dat Pro Fac Fac Total 13251 | 95 688 696 1018 882 1329 149 974 85 2088 3 90 759 2978 1417 Wait 1047 | . 20 23 10 148 201 . 9 . 75 . . . 466 95 Move 10933 | 79 608 648 928 658 1025 130 931 76 1720 3 90 718 2169 1150 Hop . | . . . . . . . . . . . . . . . Pick Up 160 | 10 9 7 16 7 11 3 3 1 35 . . 4 30 24 Fast Attach 84 | . 5 . 4 9 5 1 2 . 9 . . . 41 8 Attach 78 | 6 . 1 3 2 8 4 . . 16 . . 2 17 19 Detach 8 | . . . . . . 2 . . . . . . 5 1 Swap 111 | . 8 1 8 1 2 3 4 1 28 . . 7 30 18 Drop 149 | . 7 6 17 10 8 2 6 2 29 . . 3 47 12 Fire 292 | . 31 10 32 47 69 4 19 5 39 . . 3 33 . Melee 379 | . . . . . . . . . 127 . . 22 140 90 Ram . | . . . . . . . . . . . . . . . Kick 3 | . . . . . . . . . 3 . . . . . Crush . | . . . . . . . . . . . . . . . Escape Stasis . | . . . . . . . . . . . . . . . Rewire . | . . . . . . . . . . . . . . . Trap 7 | . . . . . . . . . 7 . . . . . Miscellaneous . | . . . . . . . . . . . . . . . Route ------- -11/Scrapyard -10/Materials (discovered 4 exits: *Mat x3 / *Min) -10/Mines (discovered 2 exits: *Mat x2) -9/Materials (discovered 5 exits: *Mat x3 / *Sto x2) -9/Storage -8/Materials (discovered 3 exits: *Fac x3) -7/Factory -7/Lower Caves -7/Lower Caves -6/Factory (discovered 6 exits: *Fac x2 / *Low x2 / *Ext x2) -6/Lower Caves -6/Data Miner -5/Proximity Caves -5/Factory -4/Factory History --------- Turn | Location | Event 11 | -11/Scrapyard | Identified exit to Materials 11 | -11/Scrapyard | Discovered exit to Materials (range 15) 97 | -11/Scrapyard | Entered Materials 97 | -10/Materials | Evolved 1 slot: Utility x1 271 | -10/Materials | Identified exit to Materials 271 | -10/Materials | Discovered exit to Materials (range 5) 362 | -10/Materials | Build established: Hacker-Mutant 441 | -10/Materials | Discovered exit to Materials (range 10) 575 | -10/Materials | Discovered exit to Materials (range 16) 1008 | -10/Materials | Identified exit to Mines 1168 | -10/Materials | Entered Mines 1170 | -10/Mines | Assisted by bots powering up and referring to "LRC-V3" 1342 | -10/Mines | Discovered exit to Materials (range 13) 1417 | -10/Mines | Learned location of 1 exit from Materials 1820 | -10/Mines | Discovered exit to Materials (range 3) 1880 | -10/Mines | Found a damaged Exp. Sensor Array with a note attached 1883 | -10/Mines | Found Prototype Device 2195 | -10/Mines | Entered Materials 2195 | -9/Materials | Accompanied by 2 allies 2195 | -9/Materials | Evolved 2 slots: Propulsion x1, Weapon x1 2196 | -9/Materials | Identified exit to Materials 2481 | -9/Materials | Identified exit to Storage 2481 | -9/Materials | Discovered exit to Storage (range 3) 2528 | -9/Materials | Discovered exit to Materials (range 8) 2612 | -9/Materials | Build established: Hacker-Tank 2733 | -9/Materials | Discovered exit to Storage (range 4) 2805 | -9/Materials | Discovered exit to Materials (range 11) 3472 | -9/Materials | Entered Storage 3651 | -9/Storage | Build established: Hacker-Gunner 4494 | -9/Storage | Discovered exit to Materials (range 16) 4575 | -9/Storage | Repaired Assault Cannon 4615 | -9/Storage | Repaired Carbon-fiber Leg 4627 | -9/Storage | Entered Materials 4627 | -8/Materials | Evolved 2 slots: Utility x2 4924 | -8/Materials | Build established: Hacker-Tank 4967 | -8/Materials | Identified Exp. Sensor Array 5435 | -8/Materials | Identified exit to Factory 5750 | -8/Materials | Repaired Assault Cannon 5791 | -8/Materials | Repaired Assault Cannon 5843 | -8/Materials | Repaired Cld. Ion Engine 5883 | -8/Materials | Repaired Carbon-fiber Leg 5922 | -8/Materials | Repaired Assault Cannon? 6777 | -8/Materials | Entered Factory 6777 | -7/Factory | Evolved 2 slots: Propulsion x1, Utility x1 6978 | -7/Factory | Identified exit to Lower Caves 6978 | -7/Factory | Discovered exit to Lower Caves (range 4) 6983 | -7/Factory | Entered Lower Caves 7102 | -7/Lower Caves | Learned 12 Factory zone layouts 7275 | -7/Lower Caves | Build established: Hacker-Mutant 7621 | -7/Lower Caves | Build established: Hacker-Tank 7790 | -7/Lower Caves | Attracted the attention of an 0b10 outpost 8047 | -7/Lower Caves | Attacked by a delusional Derelict stockpiling parts 8088 | -7/Lower Caves | Identified exit to Lower Caves 8088 | -7/Lower Caves | Discovered exit to Lower Caves (range 6) 8113 | -7/Lower Caves | Entered another Lower Caves area 8208 | -7/Lower Caves | Identified exit to Factory 8208 | -7/Lower Caves | Discovered exit to Factory (range 10) 8218 | -7/Lower Caves | Entered Factory 8218 | -6/Factory | Evolved 2 slots: Utility x2 8219 | -6/Factory | Identified exit to Extension 8219 | -6/Factory | Identified exit to Lower Caves 8496 | -6/Factory | Build established: Wizard-Skirmisher 8887 | -6/Factory | Build established: Hacker-Mutant 9216 | -6/Factory | Lost 6 parts (1p2n3w) 9665 | -6/Factory | Identified exit to Factory 9665 | -6/Factory | Discovered exit to Factory (range 5) 10088 | -6/Factory | Garrison activated, responded to threat 10132 | -6/Factory | Build established: Wizard-Mutant 10259 | -6/Factory | Discovered exit to Factory (range 8) 10685 | -6/Factory | Core integrity fell below 50% 10914 | -6/Factory | Entered Lower Caves 10915 | -6/Lower Caves | A Derelict revealed a hidden shortcut to meet someone special 10917 | -6/Lower Caves | Identified exit to Data Miner 10918 | -6/Lower Caves | Entered Data Miner 10918 | -6/Data Miner | Identified exit to Proximity Caves 10918 | -6/Data Miner | Discovered exit to Proximity Caves (range 6) 10941 | -6/Data Miner | Met Data Miner 10963 | -6/Data Miner | Learned location of Section 7 (-2) 10963 | -6/Data Miner | Acquired the access code to Warlord's prototype stash 10987 | -6/Data Miner | Received God Mode back door access code from Data Miner 11026 | -6/Data Miner | Entered Proximity Caves 11228 | -5/Proximity Caves | Escorted by Enhanced Grunt 11940 | -5/Proximity Caves | Discovered exit to Factory (range 13) 11969 | -5/Proximity Caves | Entered Factory 11969 | -5/Factory | Evolved 2 slots: Utility x1, Weapon x1 12002 | -5/Factory | Incoming investigation squad redirected 12957 | -5/Factory | Repaired Exp. Sensor Array 13019 | -5/Factory | Build established: Wizard-Gladiator 13403 | -5/Factory | Build established: Wizard-Mutant 13560 | -5/Factory | Repaired Hvy. Pick 14224 | -5/Factory | System corruption reached 10% 15181 | -5/Factory | Fabricated Exp. Utility Shielding? 15276 | -5/Factory | Incoming investigation squad redirected 15413 | -5/Factory | Fabricated Hvy. Pick (x2) 15444 | -5/Factory | Incoming investigation squad redirected 15682 | -5/Factory | Noticed a derelict Sapper rigging charges 15752 | -5/Factory | Repaired Hvy. Pick 15803 | -5/Factory | Repaired Hvy. Pick 15843 | -5/Factory | Repaired Com. Battery 15894 | -5/Factory | Repaired Lgt. Fission Core 15972 | -5/Factory | Identified exit to Factory 15972 | -5/Factory | Discovered exit to Factory (range 11) 15980 | -5/Factory | Entered another Factory area 15980 | -4/Factory | Evolved 2 slots: Utility x2 16418 | -4/Factory | Incoming investigation squad redirected 16828 | -4/Factory | Hacking Suite fried by hacking feedback 17045 | -4/Factory | Lost 9 parts (1p2n5u1w) 17469 | -4/Factory | Build established: Hacker-Assassin 17756 | -4/Factory | Self-destructed Last Messages --------------- 17727_ Slug penetrates Wall. 17727_ Manufacturing Mainframe disabled. 17727_ Slug penetrates Terminal. 17730_ ALERT: Rogue bot located, Programmers report to Factory Zone 8C. 17738_ Slug penetrates Wall. 17739_ System corrupted: Transmission Jammer rejected. 17741_ Acquired Transmission Jammer. 17742_ Slug penetrates H-77 Assassin. 17742_ Slug penetrates Wall. 17747_ Imp. Phase Shifter destroyed. 17748_ Wall collapses. 17748_ Penetrated by Slug. 17748_ Slug penetrates Wall. 17749_ Penetrated by Slug. 17749_ Slug penetrates Wall. 17753_ Power Amplifier destroyed. 17754_ Slug penetrates H-77 Assassin. 17754_ H-77 Assassin suffers critical hit (Destroy). 17756_ Penetrated by Slug. 17756_ System Shield destroyed. Map ----- +----------------------------------------------------+ | ???????# ????????????????????? | | ???????# ^ ????????????????????? | | ???????# ????????????????????? | | ??????######+###############?????????????????????? | | ??????# #?????????????????????????????? | | ??????# ! #?????????????????????????????? | | ??????# #?????????????????????????????? | | ??????# """ """ #?????????????????????????????? | | ??????# """ """ #?????????????????????????????? | | ??????# """ """ #?????????????????????????????? | | ??????# #?????????????????????????????? | | ??????# """ #?????????????????????????????? | | ??????# """ """#?????????????????????????????? | | ??????# """ R"#?????????????????????????????? | | ??????# """#?????????????????????????????? | | ??????# #?????????????????????????????? | | ??????##############?????????????????????????????? | | ??????????######"#######?????????????????????????? | | ??????????#! % ! #?????????????????????????? | | ??????????# #?????????????????????????? | | ??????????# """" """" ###########+###???????????? | | ??????????#= """" """" # = ??????????? | | ??????????# """" """ # ??????????????? | | ??????????#= """" "" ; """ ????????????????? | | ??????????# ; ""T"" ????????????????? | | ??????????# """" """" #h@"" "" ???""""?""""????? | | ??????????# """" """" # b """"?""""????? | | ??????????# """" """" # hu """"?""""????? | | ??????????# """" """" # gh """"?""""????? | | ??????????# # """"?""""????? | | ??????????#"####"####### """"?""""????? | | ??????????##???###?????# ???????????? | | ???????????????????????#g ??????????? | | ???????????????????????# #########???????????? | | ???????????????????????# #???????????????????? | | ???????????????????????# #???????????????????? | | ???????????????????????# #???????????????????? | | ???????????????????????# #???????????????????? | | ???????????????????????? #???????????????????? | | ???????????????????????? #???????????????????? | | ???????????????????????? ?????????????????????? | | ????????????"""?"""??????????????????????????????? | | ????????????"""?"""??????????????????????????????? | | ????????????"""?"""??????????????????????????????? | | ?????????????????????????????????????????????????? | | ????????????"""??????????????????????????????????? | | ????????????"""??????????????????????????????????? | | ????????????"""??""T""???????????????????????????? | | ?????????????????"""""???????????????????????????? | | ?????????????????????????????????????????????????? | +----------------------------------------------------+ Best States ------------- Heat Dissipation 67 Energy Generation 24 Energy Capacity 370 Matter Stores 300 Matter Capacity 300 Sight Range 16 Robot Scan Range 20 Terrain Scan Density 10 Jamming Range 14 Power Amplification 20 Additional Mass Support 9 Armor Coverage 325 Resistance: KI 35 Resistance: TH 35 Resistance: EX 35 Resistance: EM 35 Resistance: I 35 Resistance: S 35 Resistance: P 35 Propulsion Shielding 66 Utility Shielding 90 Weapon Shielding 33 Melee Speed Boost 20 Phase Shifting 10 Evasion (%) 60 Melee Accuracy 8 Recoil Reduction 2 Offensive Hacking 80 Defensive Hacking 10 Item Schematics ----------------- Huge Storage Unit | -10/Materials | Hacked Lrg. Storage Unit | -10/Materials | Hacked Lgt. Cannon | -10/Materials | Hacked Lgt. Ion Engine | -10/Materials | Hacked Hammer | -10/Materials | Hacked Hacking Suite | -9/Materials | Scanalyzed System Shield | -9/Materials | Hacked Salvage Targeting Computer | -9/Materials | Hacked Adv. Targeting Computer | -9/Storage | Hacked Utility Shielding | -9/Storage | Hacked Med. Armor Plating | -9/Storage | Hacked Power Shielding | -9/Storage | Hacked Cooling System | -9/Storage | Hacked Carbon-fiber Leg | -8/Materials | Hacked Cld. Ion Engine | -8/Materials | Hacked Propulsion Shielding | -8/Materials | Hacked Imp. Signal Interpreter | -8/Materials | Hacked Adv. Weight Redist. System | -8/Materials | Hacked Adv. Signal Interpreter | -6/Factory | Hacked Imp. Hacking Suite | -6/Factory | Hacked Arm. Leg | -6/Factory | Hacked Imp. Actuator Array | -6/Factory | Hacked Exp. Utility Shielding | -6/Factory | Hacked Combat Drone Bay | -6/Data Miner | Free Lgt. Regenerative Plating | -6/Data Miner | Free Cld. Gravmag System | -6/Data Miner | Free Prc. Matter Filter | -6/Data Miner | Free Thunder Hammer | -6/Data Miner | Free Centrium Wheel | -6/Data Miner | Free Adv. Thermal Shield | -6/Data Miner | Free Hardcell Cannon | -6/Data Miner | Free Adv. Plasma Cannon | -6/Data Miner | Free Graphene Brace | -6/Data Miner | Free Exp. Propulsion Shielding | -5/Factory | Hacked Exp. Sensor Array | -5/Factory | Scanalyzed Power Amplifier | -5/Factory | Scanalyzed Hvy. Pick | -5/Factory | Scanalyzed Com. Battery | -5/Factory | Scanalyzed Exp. Weapon Shielding | -5/Factory | Hacked Imp. Cooling System | -4/Factory | Scanalyzed Exp. Hacking Suite | -4/Factory | Hacked Stasis Canceller | -4/Factory | Hacked Robot Schematics ------------------ K-01 Serf | -9/Storage | Hacked L-41 Fighter | -6/Data Miner | Free R-10 Processor | -6/Data Miner | Free E-15 Imp | -6/Data Miner | Free G-67 Veteran | -6/Data Miner | Free Y-64 Sentinel | -6/Data Miner | Free Fabricated ------------ Exp. Utility Shielding | x1 | -5/Factory Hvy. Pick | x2 | -5/Factory Alien Tech Used ----------------- None Achievements -------------- None Challenges ------------ None Game ------ Seed SensorActiveSource Manual? 0 Play Time 04:04:48 Cumulative 282.7 hours Start 2022.11.26 @ 17:26:46 End 2022.11.28 @ 14:18:08 Sessions 5 Manual Loads 0 Difficulty Explorer Special Mode None Game No. 278 Rogue 119 Adventurer 81 Explorer 78 Win Type - Total 18 Types 16/0/2/0/0/0/0/0/0 Lore% 44 Gallery% 75 Achievement% 60 Wizard Run 0 Options --------- ASCII 0 Keyboard 0 Movement Mouse Keybinds 0 Fullscreen 1 Font 12/Tallcaps Map View 83x54 Tactical HUD 1 Map Filters NONE Filters NONE Steam 1 RUN: 41e0b4a4-7a57-4265-b97b-e2c60a2fdaa6